Cogmind - Beta 14 @@@ ROGUE MODE // 2024.10.02 @ 10:23:48 Player: Corvi Result: Destroyed by PT-36X(R) with Subdweller Shrapnel Launcher Performance ------------- Evolutions (0) 0 Regions Visited (3) 600 Robots Destroyed (27) 135 Value Destroyed (627) 627 Prototype IDs (0) 0 Alien Tech Used (0) 0 Bonus (-117) -117 TOTAL SCORE: 1245 Bonus ------- Follower Combat Kills 57 Friendly Fire -174 Cogmind --------- Core Integrity 0/250 Matter 215/300 Energy 154/160 System Corruption 0% Temperature Cool (0) Movement Walking (190) Ox1 Location -10/Subcaves Parts ------- > --- POWER (1) -------- Light Nuclear Core > --- PROPULSION (2) --- Carbon-fiber Leg > --- UTILITY (2) ------ Large Storage Unit Structural Scanner > --- WEAPON (2) ------- Ripper > --- INVENTORY (15) --- Carbon-fiber Leg Makeshift System Shield Beamcaster Beamcaster Subdweller Beam Cannon Assault Rifle Assault Rifle Subdweller Machine Gun Barrage Gun Proton Bomb Trap Proton Bomb Trap Proton Bomb Trap Peak State ------------ > --- POWER ------------ Light Nuclear Core > --- PROPULSION ------- Aluminum Leg Aluminum Leg > --- UTILITY ---------- Large Storage Unit Structural Scanner > --- WEAPON ----------- Grenade Launcher Ripper > --- INVENTORY -------- Carbon-fiber Leg Carbon-fiber Leg Makeshift System Shield Beamcaster Beamcaster Subdweller Beam Cannon Assault Rifle Assault Rifle Subdweller Machine Gun Barrage Gun Proton Bomb Trap Proton Bomb Trap Proton Bomb Trap [Rating: 15] Favorites ----------- Power Light Ion Engine Engine Light Ion Engine Power Core Light Nuclear Core Propulsion Light Treads Treads Light Treads Leg Aluminum Leg Wheel Subdweller Monowheel Utility Large Storage Unit Device Structural Scanner Storage Large Storage Unit Processor Targeting Computer Weapon Assault Rifle Ballistic Gun Assault Rifle Launcher Grenade Launcher Slashing Weapon Ripper Build | -11 -10 -10 -10 ------- Run | Yrd Mat Min Sub Slots Evolved . | . . . . Power . | . . . . Propulsion . | . . . . Utility . | . . . . Weapon . | . . . . Parts Attached 39 | 6 9 3 21 Power 7 | 1 2 . 4 Engine 6 | 1 2 . 3 Core 1 | . . . 1 Reactor . | . . . . Propulsion 13 | 2 2 . 9 Treads 5 | 2 2 . 1 Leg 5 | . . . 5 Wheel 3 | . . . 3 Hover . | . . . . Flight . | . . . . Utility 6 | 1 2 1 2 Device 3 | . . 1 2 Storage 2 | 1 1 . . Processor 1 | . 1 . . Hackware . | . . . . Protection . | . . . . Artifact . | . . . . Weapon 13 | 2 3 2 6 Energy Gun . | . . . . Energy Cannon . | . . . . Ballistic Gun 8 | 2 2 1 3 Ballistic Cannon . | . . . . Launcher 4 | . 1 1 2 Special Weapon . | . . . . Impact Weapon . | . . . . Slashing Weapon 1 | . . . 1 Piercing Weapon . | . . . . Special Melee Weapon . | . . . . Unidentified Prototypes . | . . . . Parts Lost 9 | . 1 1 7 Power 3 | . 1 . 2 Propulsion 3 | . . . 3 Utility . | . . . . Weapon 3 | . . 1 2 Highest Loss Streak 3 | . 1 1 3 To Critical Strikes 1 | . . . 1 Average Slot Usage (%) 96 | . 91 100 98 Engine 13 | . 13 14 13 Treads 15 | . 27 28 5 Leg 11 | . . . 21 Device 7 | . . 2 13 Storage 14 | . 14 14 14 Processor 3 | . 7 11 . Ballistic Gun 20 | . 27 27 13 Launcher 7 | . . . 13 Peak Build Rating 15 | 6 8 8 15 Average Rating 8 | 5 6 7 10 On Entrance 5 | . 6 8 8 Naked Turns . | . . . . Heaviest Build 33 | 11 28 29 33 Greatest Support 40 | 40 40 40 40 Greatest Overweight (x) 3 | 1 . . 3 Average Overweight (x) . | . . . . Largest Inventory Capacity 15 | 8 15 15 15 Average Capacity 14 | 7 13 15 15 Most Carried 15 | 4 11 15 15 Average Carried 12 | 1 8 13 14 Final Capacity 15 | 8 15 15 15 Final Carried 14 | 4 11 14 12 Class Distribution -------------------- 100% | Mutant Dominant Class ---------------- Mutant | -10/Materials Mutant | -10/Mines Mutant | -10/Subcaves Resources | -11 -10 -10 -10 ----------- Run | Yrd Mat Min Sub Matter Collected 980 | 243 313 61 363 Remotely . | . . . . Salvage Created 853 | . 427 82 344 Parts 59 | . 25 7 27 Haulers Intercepted . | . . . . Recyclers Shooed . | . . . . Parts Field Recycled . | . . . . Retrieved Matter . | . . . . Parts Self-Destructed 8 | . . . 8 Prevented . | . . . . Kills | -11 -10 -10 -10 ------- Run | Yrd Mat Min Sub Combat Hostiles Destroyed 21 | . 9 3 9 Melee 1 | . . . 1 Guns 14 | . 9 3 2 AOE 6 | . . . 6 Classes Destroyed 8 | . 5 1 2 Builder 2 | . 1 1 . Tunneler 1 | . . 1 . Operator 1 | . 1 . . Watcher 1 | . 1 . . Swarmer 8 | . 2 2 4 Grunt 8 | . 7 1 . Subdweller 5 | . . . 5 Guerrilla 1 | . . . 1 Best Kill Streak 2 | . 2 2 2 Combat Bots Only 2 | . 2 2 2 Max Kills in Single Turn 3 | . 1 2 3 Gunslinging . | . . . . Exploded 2 | . . . 2 Melee 1 | . . . 1 Uniques/NPCs Destroyed . | . . . . Combat | -11 -10 -10 -10 -------- Run | Yrd Mat Min Sub Hostile Shots Fired 138 | . 49 14 75 Missed 43 | . 8 6 29 Damage Taken 1567 | . 513 93 961 Core 269 | . 51 . 218 Absorbed by Shields . | . . . . Regen/Repaired (Parts) 152 | . 152 . . Core Remaining (%) 100 | 100 . . . Volleys Fired 107 | . 47 6 54 Largest 2 | . 2 2 2 Hottest 50 | . 40 40 50 Shots Fired 160 | . 91 11 58 Gun 142 | . 88 10 44 Cannon . | . . . . Launcher 18 | . 3 1 14 Special . | . . . . Kinetic 142 | . 88 10 44 Thermal . | . . . . Explosive 18 | . 3 1 14 Electromagnetic . | . . . . Robot Hit Streak 16 | . 14 4 16 Robot Miss Streak 4 | . 4 1 4 Penetration Max . | . . . . Secondary Targets 1 | . 1 . . Max Gunslinging Chain 1 | . 1 . . Shots Hit Robots 118 | . 64 7 47 Core Hits 54 | . 25 5 24 Critical Kills . | . . . . Critical Parts Destroyed . | . . . . Critical Strikes 1 | . . . 1 Destroy 1 | . . . 1 Melee Attacks 10 | . . . 10 Impact . | . . . . Slashing 10 | . . . 10 Piercing . | . . . . Sneak Attacks . | . . . . Combat Hostiles . | . . . . Follow-up Attacks . | . . . . Damage Inflicted 2310 | . 678 195 1437 Guns 1254 | . 662 121 471 Cannons . | . . . . Explosions 809 | . 16 74 719 Melee 247 | . . . 247 Ramming . | . . . . Kinetic 1254 | . 662 121 471 Thermal . | . . . . Explosive 809 | . 16 74 719 Electromagnetic . | . . . . Impact . | . . . . Slashing 247 | . . . 247 Piercing . | . . . . Highest Corruption . | . . . . Average Corruption . | . . . . Corruption Purged . | . . . . Corruption Blocked . | . . . . Overload Shots . | . . . . Overflow Damage . | . . . . Projectiles . | . . . . Explosions . | . . . . Melee . | . . . . Knockbacks . | . . . . Impact . | . . . . Kinetic . | . . . . Secondary . | . . . . Self-Inflicted Damage 45 | . . . 45 Shots 2 | . . . 2 Rammed . | . . . . Targets Rammed . | . . . . Kicked . | . . . . Crushed . | . . . . Highest Temperature 12 | . 12 . . Average Temperature 7 | . 7 . . Received Heat Transfer 288 | . 168 36 84 Siege Activations . | . . . . Robots Corrupted . | . . . . Combat Hostiles . | . . . . Parts Fried . | . . . . Impact Corruptions . | . . . . Robots Melted . | . . . . Combat Hostiles . | . . . . Parts Melted 1 | . . . 1 Heat Transferred . | . . . . Parts Sabotaged . | . . . . Parts Stolen . | . . . . Parts Stripped . | . . . . Power Chain Reactions . | . . . . Alert | -11 -10 -10 -10 ------- Run | Yrd Mat Min Sub Peak Influence 167 | . 167 78 . Initial . | . . . . Average 40 | . 49 29 . Maximum Alert Level . | . . . . Low Security (%) 100 | 100 100 100 . Level 1 . | . . . . Level 2 . | . . . . Level 3 . | . . . . Level 4 . | . . . . Level 5 . | . . . . High Security . | . . . . Max Security . | . . . . Squads Dispatched 2 | . 1 1 . Investigation 1 | . . 1 . Extermination . | . . . . Reinforcement 1 | . 1 . . Assault . | . . . . Garrison . | . . . . Intercept . | . . . . Searches Triggered . | . . . . Construction Impeded . | . . . . Haulers Reinforced . | . . . . Active Scanning Responses . | . . . . Cargo Convoy Interrupts . | . . . . Stealth | -11 -10 -10 -10 --------- Run | Yrd Mat Min Sub Distress Signals 1 | . 1 . . Communications Jammed . | . . . . Distress Signals . | . . . . Times Spotted 50 | . 21 6 23 Peak Tracking Total 6 | . 4 3 6 Tactical Retreats 2 | . . . 2 Traps | -11 -10 -10 -10 ------- Run | Yrd Mat Min Sub Traps Triggered . | . . . . Indirectly . | . . . . Trap Hack Attempts . | . . . . Triggered . | . . . . Disarmed . | . . . . Reprogrammed . | . . . . Reused . | . . . . Traps Extracted . | . . . . Installed . | . . . . Triggered . | . . . . Most Traps Carried 4 | . . 4 4 Machines | -11 -10 -10 -10 ---------- Run | Yrd Mat Min Sub Machines Disabled 1 | . . . 1 Max in Single Turn 1 | . . . 1 Machines Repaired . | . . . . Machines Dismantled . | . . . . Machines Sabotaged . | . . . . Overloaded Fab Kills . | . . . . Hacking | -11 -10 -10 -10 --------- Run | Yrd Mat Min Sub Machines Accessed 8 | . 7 1 . Terminals 7 | . 6 1 . Fabricators . | . . . . Repair Stations 1 | . 1 . . Recycling Units . | . . . . Scanalyzers . | . . . . Garrison Access . | . . . . Total Hacks 31 | . 28 3 . Successful 16 | . 15 1 . Failed 15 | . 13 2 . Catastrophic 1 | . 1 . . Database Lockouts . | . . . . Manual 21 | . 21 . . Terminals 27 | . 24 3 . Fabricators . | . . . . Repair Stations 4 | . 4 . . Recycling Units . | . . . . Scanalyzers . | . . . . Garrison Access . | . . . . Terminal Hacks 8 | . 7 1 . Robot Analysis 2 | . 2 . . Terminal Index 1 | . 1 . . Unreport Threat 1 | . 1 . . Locate Traps 1 | . 1 . . Recall Investigation 1 | . 1 . . Hauler Manifests 1 | . 1 . . Zone Layout 1 | . . 1 . Fabricator Hacks . | . . . . Repair Station Hacks 4 | . 4 . . Scan Component 2 | . 2 . . Repair 2 | . 2 . . Recycling Unit Hacks . | . . . . Scanalyzer . | . . . . Garrison Access Hacks . | . . . . Unauthorized Hacks 4 | . 4 . . Terminals 4 | . 4 . . Botnet 2 | . 2 . . Operators 2 | . 2 . . Fabricators . | . . . . Repair Stations . | . . . . Recycling Units . | . . . . Scanalyzers . | . . . . Garrison Access . | . . . . Data Cores Recovered . | . . . . Used . | . . . . Hacking Detections 6 | . 5 1 . Full Trace Events 2 | . 1 1 . Feedback Events . | . . . . Feedback Blocked . | . . . . Robot Schematics Acquired . | . . . . Robots Built . | . . . . Authchips . | . . . . Time . | . . . . Total Robot Build Rating . | . . . . Part Schematics Acquired . | . . . . Parts Built . | . . . . Authchips . | . . . . Time . | . . . . Total Part Build Rating . | . . . . Parts Repaired 2 | . 2 . . Time 52 | . 52 . . Parts Recycled . | . . . . Recycled Matter . | . . . . Retrieved Matter . | . . . . Retrieved Components . | . . . . Parts Scanalyzed . | . . . . Part Schematics Acquired . | . . . . Parts Damaged . | . . . . Bothacking | -11 -10 -10 -10 ------------ Run | Yrd Mat Min Sub Used RIF Installer . | . . . . Robots Hacked . | . . . . Non-combat . | . . . . Combat . | . . . . Robot Hacks Applied . | . . . . Relay Couplers Released . | . . . . Fabnet Peak Effective % . | . . . . Robots Rewired . | . . . . Allies Hacked . | . . . . Hacks Repelled . | . . . . Allies | -11 -10 -10 -10 -------- Run | Yrd Mat Min Sub Total Allies 3 | . . 3 . Largest Group 3 | . . 3 . Highest-Rated Group 40 | . . 40 . Highest-Rated Ally 16 | . . 16 . Total Orders . | . . . . Ally Attacks 19 | . . 19 . Total Damage 234 | . . 234 . Kills 3 | . . 3 . Allies Corrupted . | . . . . Allies Melted . | . . . . Intel | -11 -10 -10 -10 ------- Run | Yrd Mat Min Sub Robot Analysis Total 2 | . 2 . . Derelict Logs Recovered 1 | . . 1 . Drone Launches . | . . . . Drone Recoveries . | . . . . Exploration | -11 -10 -10 -10 ------------- Run | Yrd Mat Min Sub Turns Passed 5253 | 93 1519 798 2843 Spaces Moved 2801 | 55 790 452 1504 Core 8 | 8 . . . Treads 1471 | 47 790 452 182 Legs 1073 | . . . 1073 Wheels 249 | . . . 249 Hover . | . . . . Flight . | . . . . Fastest Speed 50 | 50 160 160 110 Average Speed 168 | 146 160 160 175 Slowest Speed 330 | 160 160 160 330 Overloaded Moves . | . . . . Propulsion Burnouts . | . . . . Robots Hopped . | . . . . Cave-ins Triggered . | . . . . Exploration Rate (%) 54 | 6 79 60 73 Regions Visited 3 Branch Regions 2 Pre-discovered Areas 1 | . . 1 . Known Exits Taken . | . . . . Unknown Exits Taken 3 | 1 1 1 . Scrap Searched 10 | . . . 10 Spaces Dug . | . . . . Terrain Destroyed 83 | . 28 9 46 Melee . | . . . . Projectile . | . . . . AOE 83 | . 28 9 46 Terrain Rammed . | . . . . Walls Destroyed . | . . . . Machines Disabled . | . . . . Actions | -11 -10 -10 -10 --------- Run | Yrd Mat Min Sub Total 3176 | 64 961 516 1635 Wait 172 | . 104 50 18 Move 2798 | 54 789 451 1504 Hop . | . . . . Pick Up 29 | 4 8 5 12 Fast Attach 17 | 6 6 . 5 Attach 12 | . 1 2 9 Detach 3 | . 1 . 2 Swap 10 | . 2 1 7 Drop 18 | . 3 1 14 Fire 107 | . 47 6 54 Melee 10 | . . . 10 Ram . | . . . . Kick . | . . . . Crush . | . . . . Escape Stasis . | . . . . Rewire . | . . . . Trap . | . . . . Miscellaneous . | . . . . Route ------- -11/Scrapyard -10/Materials (discovered 4 exits: [*Mat x3] / *Min) -10/Mines -10/Subcaves (discovered 3 exits: [*Mat x2] / [*Rec]) History --------- Turn | Location | Event 39 | -11/Scrapyard | Discovered new exit (range 14) 94 | -11/Scrapyard | Entered Materials 309 | -10/Materials | Build established: Mutant 645 | -10/Materials | Repaired Lgt. Treads 673 | -10/Materials | Repaired Lgt. Treads 726 | -10/Materials | Discovered new exit (range 7) 1078 | -10/Materials | Discovered new exit (range 12) 1520 | -10/Materials | Discovered new exit (range 15) 1582 | -10/Materials | Discovered new exit (range 7) 1613 | -10/Materials | Entered Mines 1669 | -10/Mines | Assisted by bots powering up and referring to "LRC-V3" 1812 | -10/Mines | Found a hidden stash of uninstalled traps 1854 | -10/Mines | Learned location of Zion (-6) 1977 | -10/Mines | Deemed a non-threat by the Exiles lab entrance 2361 | -10/Mines | Discovered new exit (range 13) 2411 | -10/Mines | Entered Subcaves 2744 | -10/Subcaves | Ambushed by swarm of Subdwellers 2760 | -10/Subcaves | Core integrity fell below 50% 2864 | -10/Subcaves | Discovered new exit (range 4) 3076 | -10/Subcaves | Shifting Twisted Machinery released Sub. Power Source 3091 | -10/Subcaves | Shifting Twisted Machinery released Ripper 4014 | -10/Subcaves | Disturbed a concealed Subdweller 4014 | -10/Subcaves | Ambushed by Subdweller buried in earth 4392 | -10/Subcaves | Discovered new exit (range 11) 4523 | -10/Subcaves | A swath of the cavern ceiling suddenly collapsed 4807 | -10/Subcaves | Discovered new exit (range 13) 4827 | -10/Subcaves | Shifting Twisted Machinery released Mak. System Shield 4828 | -10/Subcaves | Shifting Twisted Machinery released Scrap Shield 5171 | -10/Subcaves | Shifting Twisted Machinery released Sub. Power Source 5203 | -10/Subcaves | Core integrity fell below 20% 5254 | -10/Subcaves | Destroyed by PT-36X(R) with Subdweller Shrapnel Launcher Last Messages --------------- Dropped Assault Rifle. Acquired Sub. Machine Gun. Acquired 10 matter. TZ-QU7(u) tweaks Twisted Machinery. Sub. Power Source falls loose from the Twisted Machinery. Q5-JYP(R) suffers critical hit (Destroy). Critical hit (Destroy). Grenade Launcher destroyed. Ion Engine destroyed. Destroyed Scrap Shield. Q5-JYP(R) destroyed. I7-PXZ(R): "ARGHSUB!" Aluminum Leg destroyed. Grenade Launcher destroyed. The unstable cave ceiling collapses. I7-PXZ(R) destroyed. The unstable cave ceiling collapses. PT-36X(R) affixes Scrap Shield Fragment to Scrap Shield. Aluminum Leg destroyed. [Achievement: Back For More] Map ----- +----------------------------------------------------+ | ???### ## ### #???????????????????????? | | ??#### #### ## #???????????????????????? | | ??### ##### ### ###???????????????????????? | | ??## #### ######?????????????????????????? | | ??## ##" &### ! ####### ##?????????????????????? | | ??#####= ""&& ##### ##?????????????????????? | | ??#####&&[ ! ##?????????????????????? | | ?????## ! "&### % ###?????????????????????? | | ????### &!"&#### ### ####?????????????????????? | | ????## "= ##### #########??????????????????????? | | ???### ##### " ###???????????????????????????? | | ???## ## #### " ###????????????????????????????? | | ???## ### ### ###????????????????????????????? | | ???### ##" #####"" #?????????????????????????????? | | ???#######"#####" ##?????????????????????????????? | | ????### "#### ###????????????????????????????? | | ????????? ####" ##????????????????????????????? | | ????????? """ """ #????????????????????????????? | | ????????? """ """"" #####????????????????????????? | | ????????? "" """ #####????????????????????????? | | ????????? ?"" #????????????????????????? | | ????????" "" ######???????????????????? | | ????????##"" ######???????????????????? | | ???????????" ####?????????????????? | | ?????????"""" ## ;;; ####?????????????????? | | ????????? "" # ;@;;# ##????????#######??? | | ???????????? ## & * R ####??????#########?? | | ????????????"## !%; ; ### ?????### ##### | | ???????????? # ;;;;; # ## #????## #### | | ????????????### ########## ####???## ## | | ????????????### ############# ####??## | | ????????????#### ##????????# ## ####?## | | ?????????????### ????????????# ## ###### | | ??????????????# ?????????????#### ##### | | ????????????##" ??????????????? ### ### # | | ????????????#####????????????????#### # | | ????????????#####?????????????????### # ## | | ???????????????????????????????????######## ## | | ???????????????????????????????????######### | | ?????????????????????????????????????????### | | ??????????????????????????????????????????### # | | ??????????????????????????????????????????##### # | | ???????????????????????????????????????????##### # | | ?????????????????????????????????????????????##### | | ???????????????????????????????????????????????### | | ?????????????????????????????????????????????????? | | ?????????????????????????????????????????????????? | | ?????????????????????????????????????????????????? | | ?????????????????????????????????????????????????? | | ?????????????????????????????????????????????????? | +----------------------------------------------------+ Best States ------------- Heat Dissipation 25 Energy Generation 15 Energy Capacity 250 Matter Stores 300 Matter Capacity 300 Sight Range 21 Terrain Scan Density 10 Evasion (%) 40 Targeting Accuracy 5 Recoil Reduction 2 Item Schematics ----------------- None Robot Schematics ------------------ None Fabricated ------------ Nothing Alien Tech Used ----------------- None Achievements -------------- Back For More Challenges ------------ None Game ------ Seed LegHugeShielding Manual? 0 Play Time 00:31:38 Cumulative 43.3 hours Start 2024.10.02 @ 09:51:25 End 2024.10.02 @ 10:23:48 Sessions 1 Manual Loads 0 Difficulty Rogue Special Mode None Game No. 50 Rogue 50 Adventurer 0 Explorer 0 Win Type - Total 0 Types 0/0/0/0/0/0/0/0/0 Lore% 27 Gallery% 39 Achievement% 35 Wizard Run 0 Options --------- Layout 0 ASCII 0 Keyboard 0 Movement Arrows Keybinds 0 Fullscreen 1 Font 18/SmallcapsGlow Map View 76x50 Zoom Use 0% Tactical HUD 0 Map Filters NONE Filters NONE Steam 0 RUN: bdef564f-e6db-46e2-8805-5ae82985d781